[Event "II Open Internacional Ateneo Marítimo (60 Aniversario)"]
[Site "C/La reina 68 (Valencia), Spain"]
[Date "2018.09.15"]
[Round "6.3"]
[White "Valmana Canto, Jaime"]
[Black "Nieves Cabanes, Jose Manuel"]
[Result "1-0"]
[TimeControl "7m+3s por jugada"]
[WhiteFideId "2268990"]
[BlackFideId "22245715"]
[WhiteElo "2340"]
[BlackElo "2278"]

1. e4 {[%clk 00:07:04]} {[%emt 00:00:05]} e5 {[%clk 00:07:04]} 2. Nf3 {[%clk
00:07:04]} {[%emt 00:00:09]} Nc6 {[%clk 00:07:06]} 3. Bb5 {[%clk 00:07:06]} a6
{[%clk 00:07:07]} {[%emt 00:00:12]} 4. Bxc6 {[%clk 00:07:07]} dxc6 {[%clk
00:07:07]} 5. O-O {[%clk 00:07:08]} Bg4 {[%clk 00:07:04]} {[%emt 00:00:08]} 6.
h3 {[%clk 00:07:09]} h5 {[%clk 00:07:05]} 7. d3 {[%clk 00:07:11]} Qf6 {[%clk
00:06:45]} {[%emt 00:00:19]} 8. Nbd2 {[%clk 00:07:12]} g5 {[%clk 00:06:08]}
{[%emt 00:00:51]} 9. Re1 {[%clk 00:05:56]} {[%emt 00:01:09]} Bxf3 {[%clk
00:03:46]} {[%emt 00:02:25]} 10. Qxf3 {[%clk 00:05:55]} {[%emt 00:00:06]} Qxf3
{[%clk 00:03:31]} {[%emt 00:00:16]} 11. Nxf3 {[%clk 00:05:57]} {[%emt
00:00:08]} f6 {[%clk 00:03:33]} 12. Be3 {[%clk 00:05:23]} {[%emt 00:00:36]}
O-O-O {[%clk 00:03:26]} {[%emt 00:00:06]} 13. Rad1 {[%clk 00:05:19]} {[%emt
00:00:07]} c5 {[%clk 00:03:15]} {[%emt 00:00:13]} 14. h4 {[%clk 00:04:57]}
{[%emt 00:00:25]} g4 {[%clk 00:03:09]} {[%emt 00:00:09]} 15. Nd2 {[%clk
00:04:58]} Bd6 {[%clk 00:02:50]} {[%emt 00:00:23]} 16. f3 {[%clk 00:04:01]}
{[%emt 00:01:01]} Ne7 {[%clk 00:02:50]} {[%emt 00:00:06]} 17. fxg4 {[%clk
00:03:48]} {[%emt 00:00:14]} hxg4 {[%clk 00:02:51]} 18. g3 {[%clk 00:03:50]}
Nc6 {[%clk 00:02:22]} {[%emt 00:00:44]} 19. Rf1 {[%clk 00:03:33]} {[%emt
00:00:11]} Be7 {[%clk 00:02:24]} 20. Rf2 {[%clk 00:03:26]} {[%emt 00:00:11]}
Nb4 {[%clk 00:01:59]} {[%emt 00:00:33]} 21. Nc4 {[%clk 00:03:12]} {[%emt
00:00:12]} b5 {[%clk 00:01:37]} {[%emt 00:00:25]} 22. Na5 {[%clk 00:02:56]}
{[%emt 00:00:18]} Kd7 {[%clk 00:00:31]} {[%emt 00:01:10]} 23. a3 {[%clk
00:02:47]} {[%emt 00:00:12]} Nc6 {[%clk 00:00:30]} {[%emt 00:00:06]} 24. Nb7
{[%clk 00:02:46]} {[%emt 00:00:05]} Rb8 {[%clk 00:00:22]} {[%emt 00:00:07]} 25.
Nxc5+ {[%clk 00:02:47]} Bxc5 {[%clk 00:00:23]} {[%emt 00:00:06]} 26. Bxc5
{[%clk 00:02:49]} Ke6 {[%clk 00:00:25]} {[%emt 00:00:05]} 27. Rdf1 {[%clk
00:02:48]} {[%emt 00:00:08]} Rh6 {[%clk 00:00:15]} {[%emt 00:00:07]} 28. Be3
{[%clk 00:02:50]} Rg6 {[%clk 00:00:13]} {[%emt 00:00:09]} 29. h5 {[%clk
00:02:51]} Rg7 {[%clk 00:00:11]} {[%emt 00:00:04]} 30. Rxf6+ {[%clk 00:02:52]}
{[%emt 00:00:15]} Kd7 {[%clk 00:00:12]} 31. h6 {[%clk 00:02:37]} {[%emt
00:00:10]} Re7 {[%clk 00:00:09]} 32. Bc5 {[%clk 00:02:29]} {[%emt 00:00:11]}
Rh7 {[%clk 00:00:09]} {[%emt 00:00:06]} 33. Rf7+ {[%clk 00:02:29]} {[%emt
00:00:08]} Rxf7 {[%clk 00:00:10]} 34. Rxf7+ {[%clk 00:02:31]} Ke6 {[%clk
00:00:08]} 35. Rxc7 {[%clk 00:02:30]} {[%emt 00:00:05]} Nd8 {[%clk 00:00:05]}
{[%emt 00:00:06]} 36. h7 {[%clk 00:02:11]} {[%emt 00:00:25]} Nf7 {[%clk
00:00:07]} 37. Rc6+ {[%clk 00:02:12]} Kd7 {[%clk 00:00:08]} {[%emt 00:00:04]}
38. Rxa6 {[%clk 00:02:10]} {[%emt 00:00:04]} Rh8 {[%clk 00:00:08]} {[%emt
00:00:05]} 39. Rg6 {[%clk 00:01:56]} {[%emt 00:00:13]} Rxh7 {[%clk 00:00:08]}
{[%emt 00:00:06]} 40. Rxg4 {[%clk 00:01:57]} Rh6 {[%clk 00:00:06]} {[%emt
00:00:08]} 41. Kg2 {[%clk 00:01:54]} {[%emt 00:00:04]} Rf6 {[%clk 00:00:06]}
{[%emt 00:00:04]} 42. Rg8 {[%clk 00:01:50]} {[%emt 00:00:05]} Nd8 {[%clk
00:00:06]} {[%emt 00:00:05]} 43. Rg7+ {[%clk 00:01:50]} {[%emt 00:00:05]} Kc6
{[%clk 00:00:07]} 44. Be7 {[%clk 00:01:48]} {[%emt 00:00:06]} 1-0

[Event "II Open Internacional Ateneo Marítimo (60 Aniversario)"]
[Site "C/La reina 68 (Valencia), Spain"]
[Date "2018.09.15"]
[Round "6.4"]
[White "Camarena Gimenez, Rufino"]
[Black "Chernikov, Vladimir"]
[Result "0-1"]
[TimeControl "7m+3s por jugada"]
[WhiteFideId "2211106"]
[BlackFideId "14112914"]
[WhiteElo "2339"]
[BlackElo "2158"]

1. d4 {[%clk 00:07:04]} {[%emt 00:00:31]} Nf6 {[%clk 00:07:06]} 2. c4 {[%clk
00:07:05]} b6 {[%clk 00:07:08]} 3. d5 {[%clk 00:07:03]} {[%emt 00:00:08]} e6
{[%clk 00:07:00]} 4. a3 {[%clk 00:07:04]} Bb7 {[%clk 00:06:45]} {[%emt
00:00:06]} 5. Nc3 {[%clk 00:07:05]} {[%emt 00:00:04]} d6 {[%clk 00:06:34]}
{[%emt 00:00:09]} 6. Nf3 {[%clk 00:06:55]} {[%emt 00:00:42]} Qe7 {[%clk
00:06:10]} {[%emt 00:00:11]} 7. g3 {[%clk 00:06:48]} {[%emt 00:00:04]} g6
{[%clk 00:06:02]} {[%emt 00:00:05]} 8. Bg2 {[%clk 00:06:48]} {[%emt 00:00:13]}
Bg7 {[%clk 00:06:04]} 9. O-O {[%clk 00:06:42]} O-O {[%clk 00:06:04]} {[%emt
00:00:03]} 10. Nd4 {[%clk 00:06:33]} {[%emt 00:00:34]} e5 {[%clk 00:05:01]}
{[%emt 00:00:46]} 11. Nc6 {[%clk 00:06:25]} {[%emt 00:00:08]} Qd7 {[%clk
00:04:37]} {[%emt 00:00:44]} 12. Nxb8 {[%clk 00:06:03]} {[%emt 00:00:24]} Raxb8
{[%clk 00:04:38]} 13. e4 {[%clk 00:05:53]} {[%emt 00:00:08]} Ne8 {[%clk
00:04:22]} {[%emt 00:00:18]} 14. Be3 {[%clk 00:05:32]} {[%emt 00:00:35]} f5
{[%clk 00:04:14]} 15. exf5 {[%clk 00:05:32]} gxf5 {[%clk 00:04:15]} 16. f4
{[%clk 00:05:33]} Qf7 {[%clk 00:03:27]} {[%emt 00:00:50]} 17. Qd2 {[%clk
00:04:11]} {[%emt 00:01:54]} Qg6 {[%clk 00:03:26]} 18. Rf2 {[%clk 00:04:03]}
Nf6 {[%clk 00:03:22]} 19. fxe5 {[%clk 00:03:48]} {[%emt 00:00:08]} dxe5 {[%clk
00:02:41]} {[%emt 00:01:03]} 20. Bh3 {[%clk 00:03:00]} {[%emt 00:00:36]} f4
{[%clk 00:02:38]} {[%emt 00:00:07]} 21. Bxf4 {[%clk 00:02:16]} {[%emt
00:00:43]} exf4 {[%clk 00:02:39]} {[%emt 00:00:31]} 22. Qxf4 {[%clk 00:02:13]}
Nxd5 {[%clk 00:02:23]} {[%emt 00:00:06]} 23. Nxd5 {[%clk 00:01:32]} {[%emt
00:00:59]} Bxd5 {[%clk 00:02:25]} 24. cxd5 {[%clk 00:01:34]} Rxf4 {[%clk
00:02:23]} {[%emt 00:00:12]} 25. Rxf4 {[%clk 00:01:35]} Rf8 {[%clk 00:01:59]}
26. Be6+ {[%clk 00:01:35]} {[%emt 00:00:10]} Kh8 {[%clk 00:02:00]} 27. Raf1
{[%clk 00:01:35]} Rxf4 {[%clk 00:01:55]} {[%emt 00:00:10]} 28. Rxf4 {[%clk
00:01:36]} {[%emt 00:00:04]} Qb1+ {[%clk 00:01:50]} {[%emt 00:00:03]} 29. Kg2
{[%clk 00:01:38]} Qxb2+ {[%clk 00:01:51]} {[%emt 00:00:07]} 30. Kh3 {[%clk
00:01:40]} Qxa3 {[%clk 00:01:46]} {[%emt 00:00:06]} 31. Rf7 {[%clk 00:01:39]}
{[%emt 00:00:07]} Qc1 {[%clk 00:01:18]} {[%emt 00:01:15]} 32. Rd7 {[%clk
00:01:37]} Qh6+ {[%clk 00:01:15]} 33. Kg2 {[%clk 00:01:38]} Qd2+ {[%clk
00:01:08]} 34. Kh3 {[%clk 00:01:40]} Qh6+ {[%clk 00:00:50]} 35. Kg2 {[%clk
00:01:42]} Be5 {[%clk 00:00:49]} {[%emt 00:00:03]} 36. h4 {[%clk 00:01:18]}
{[%emt 00:00:30]} a5 {[%clk 00:00:34]} {[%emt 00:00:17]} 37. Kf3 {[%clk
00:01:02]} {[%emt 00:00:46]} Qf6+ {[%clk 00:00:35]} 38. Ke4 {[%clk 00:01:01]}
Bd6 {[%clk 00:00:32]} 39. g4 {[%clk 00:00:54]} {[%emt 00:00:10]} Qf4+ {[%clk
00:00:30]} 40. Kd3 {[%clk 00:00:56]} Qg3+ {[%clk 00:00:31]} 41. Kc4 {[%clk
00:00:57]} Qxh4 {[%clk 00:00:22]} {[%emt 00:00:04]} 42. Kb5 {[%clk 00:00:50]}
{[%emt 00:00:15]} Qf2 {[%clk 00:00:18]} 43. Rd8+ {[%clk 00:00:43]} {[%emt
00:00:25]} Bf8 {[%clk 00:00:20]} 44. g5 {[%clk 00:00:44]} Qc5+ {[%clk
00:00:21]} 45. Ka6 {[%clk 00:00:46]} Qe7 {[%clk 00:00:22]} 46. Rd7 {[%clk
00:00:47]} Qxg5 {[%clk 00:00:23]} {[%emt 00:00:10]} 47. Rxc7 {[%clk 00:00:47]}
a4 {[%clk 00:00:18]} 48. Rc8 {[%clk 00:00:46]} {[%emt 00:00:04]} Kg7 {[%clk
00:00:17]} {[%emt 00:00:10]} 49. Rc7+ {[%clk 00:00:46]} Kh6 {[%clk 00:00:12]}
{[%emt 00:00:10]} 50. Rf7 {[%clk 00:00:46]} Qd8 {[%clk 00:00:12]} {[%emt
00:00:04]} 51. Bf5 {[%clk 00:00:45]} {[%emt 00:00:03]} Kg5 {[%clk 00:00:13]} 52.
Bxh7 {[%clk 00:00:46]} {[%emt 00:00:04]} a3 {[%clk 00:00:12]} {[%emt 00:00:06]}
53. Bb1 {[%clk 00:00:45]} Qd6 {[%clk 00:00:08]} {[%emt 00:00:10]} 54. Rf5+
{[%clk 00:00:46]} Kg4 {[%clk 00:00:11]} 55. Rf2 {[%clk 00:00:45]} {[%emt
00:00:11]} Qc5 {[%clk 00:00:11]} 56. Rc2 {[%clk 00:00:45]} Qa5+ {[%clk
00:00:12]} 57. Kb7 {[%clk 00:00:47]} Bc5 {[%clk 00:00:13]} {[%emt 00:00:09]} 58.
Kc6 {[%clk 00:00:48]} Qb4 {[%clk 00:00:15]} 59. Ba2 {[%clk 00:00:49]} Qa4+
{[%clk 00:00:17]} {[%emt 00:00:04]} 0-1

[Event "II Open Internacional Ateneo Marítimo (60 Aniversario)"]
[Site "C/La reina 68 (Valencia), Spain"]
[Date "2018.09.15"]
[Round "6.5"]
[White "Castella Garcia, Fausto"]
[Black "Cebrian Martinez, Antonio"]
[Result "1-0"]
[TimeControl "7m+3s por jugada"]
[WhiteFideId "3501922"]
[BlackFideId "2231646"]
[WhiteElo "2326"]
[BlackElo "1955"]

1. e4 {[%clk 00:07:05]} d5 {[%clk 00:07:05]} 2. exd5 {[%clk 00:07:05]} Qxd5
{[%clk 00:07:08]} 3. Nf3 {[%clk 00:06:58]} {[%emt 00:00:17]} Nf6 {[%clk
00:07:10]} 4. d4 {[%clk 00:06:59]} c6 {[%clk 00:07:11]} 5. c4 {[%clk 00:06:52]}
Qa5+ {[%clk 00:07:13]} 6. Nc3 {[%clk 00:06:49]} Bg4 {[%clk 00:07:15]} 7. h3
{[%clk 00:06:43]} {[%emt 00:00:06]} Bh5 {[%clk 00:07:15]} 8. Be2 {[%clk
00:06:31]} {[%emt 00:00:26]} Ne4 {[%clk 00:07:16]} 9. O-O {[%clk 00:06:17]}
{[%emt 00:00:14]} Nxc3 {[%clk 00:07:18]} 10. bxc3 {[%clk 00:06:19]} e6 {[%clk
00:06:48]} {[%emt 00:00:25]} 11. Bf4 {[%clk 00:06:13]} {[%emt 00:00:36]} Nd7
{[%clk 00:05:53]} {[%emt 00:00:30]} 12. Rb1 {[%clk 00:05:59]} {[%emt 00:00:17]}
b6 {[%clk 00:05:41]} {[%emt 00:00:32]} 13. c5 {[%clk 00:05:35]} {[%emt
00:00:13]} b5 {[%clk 00:05:20]} {[%emt 00:00:24]} 14. c4 {[%clk 00:05:30]}
{[%emt 00:00:06]} a6 {[%clk 00:05:16]} {[%emt 00:00:18]} 15. a4 {[%clk
00:05:19]} {[%emt 00:00:49]} Qxa4 {[%clk 00:04:11]} {[%emt 00:00:22]} 16. Qxa4
{[%clk 00:05:21]} bxa4 {[%clk 00:04:13]} {[%emt 00:00:40]} 17. Rb7 {[%clk
00:05:05]} {[%emt 00:00:08]} Be7 {[%clk 00:03:23]} {[%emt 00:00:26]} 18. Rxd7
{[%clk 00:05:00]} {[%emt 00:00:42]} Kxd7 {[%clk 00:03:25]} 19. Ne5+ {[%clk
00:05:02]} Kc7 {[%clk 00:03:23]} 20. Bxh5 {[%clk 00:05:00]} g5 {[%clk
00:03:03]} {[%emt 00:00:09]} 21. Bh2 {[%clk 00:04:49]} {[%emt 00:00:09]} f6
{[%clk 00:02:41]} {[%emt 00:00:24]} 22. Ng6+ {[%emt 00:01:04]} Kd7 23. Nxh8
{[%clk 00:04:19]} Rxh8 {[%clk 00:02:46]} 24. Ra1 {[%clk 00:04:15]} a5 {[%clk
00:02:39]} {[%emt 00:00:03]} 25. Rxa4 Ra8 26. Bd1 {[%clk 00:03:53]} {[%emt
00:00:28]} Ra7 {[%clk 00:02:42]} 27. Ra1 {[%clk 00:03:41]} {[%emt 00:00:08]}
Bd8 {[%clk 00:02:38]} {[%emt 00:00:03]} 28. Ba4 {[%clk 00:03:41]} {[%emt
00:00:11]} Rb7 {[%clk 00:02:34]} {[%emt 00:00:12]} 29. d5 {[%clk 00:03:42]}
exd5 {[%clk 00:02:34]} 30. cxd5 {[%emt 00:00:16]} 1-0

[Event "II Open Internacional Ateneo Marítimo (60 Aniversario)"]
[Site "C/La reina 68 (Valencia), Spain"]
[Date "2018.09.15"]
[Round "6.6"]
[White "Torres Sanchez, Jose"]
[Black "Carbonell Sancho, Marc"]
[Result "1-0"]
[TimeControl "7m+3s por jugada"]
[WhiteFideId "2217210"]
[BlackFideId "32029969"]
[WhiteElo "2290"]
[BlackElo "2051"]

1. e4 {[%clk 00:07:03]} {[%emt 00:00:12]} c5 {[%clk 00:07:03]} 2. Nf3 {[%clk
00:07:03]} Nc6 {[%clk 00:07:03]} 3. Bc4 {[%clk 00:07:03]} g6 {[%clk 00:07:03]}
{[%emt 00:00:12]} 4. O-O {[%clk 00:07:03]} {[%emt 00:00:07]} Bg7 {[%clk
00:07:03]} 5. c3 {[%clk 00:07:03]} e6 {[%clk 00:07:03]} 6. d4 {[%clk 00:06:59]}
cxd4 {[%clk 00:07:03]} {[%emt 00:00:03]} 7. Nxd4 {[%clk 00:06:50]} {[%emt
00:00:32]} Nxd4 {[%clk 00:06:59]} {[%emt 00:00:13]} 8. cxd4 {[%clk 00:06:50]}
Nf6 {[%clk 00:06:50]} 9. e5 {[%clk 00:06:47]} Ne4 {[%clk 00:06:50]} 10. Re1
{[%clk 00:06:20]} {[%emt 00:00:23]} d5 {[%clk 00:06:47]} {[%emt 00:00:18]} 11.
Bb5+ {[%clk 00:06:17]} Kf8 {[%clk 00:05:12]} {[%emt 00:01:33]} 12. f3 {[%clk
00:05:42]} {[%emt 00:00:36]} Qb6 {[%clk 00:05:12]} {[%emt 00:00:12]} 13. Na3
{[%clk 00:05:38]} Bxe5 {[%clk 00:02:49]} {[%emt 00:02:46]} 14. fxe4 {[%clk
00:05:22]} Bxd4+ {[%clk 00:02:49]} {[%emt 00:00:03]} 15. Kh1 {[%clk 00:05:22]}
Bc5 {[%clk 00:02:49]} 16. Bh6+ {[%clk 00:04:55]} {[%emt 00:00:56]} Ke7 {[%clk
00:02:30]} {[%emt 00:00:09]} 17. exd5 {[%clk 00:04:28]} {[%emt 00:01:03]} Bxa3
{[%clk 00:02:13]} 18. bxa3 {[%clk 00:04:27]} Qxb5 {[%clk 00:01:54]} {[%emt
00:00:26]} 19. Qd4 {[%clk 00:04:18]} f6 {[%clk 00:00:16]} {[%emt 00:01:26]} 20.
Bg7 {[%clk 00:03:56]} {[%emt 00:00:46]} e5 {[%clk 00:00:16]} 21. Bxf6+ {[%clk
00:03:55]} Kxf6 {[%clk 00:00:10]} 22. Qxe5+ {[%clk 00:03:53]} Kf7 {[%clk
00:00:10]} 23. Qxh8 {[%clk 00:03:45]} {[%emt 00:00:22]} Qxd5 {[%clk 00:00:09]}
24. Qxh7+ {[%clk 00:03:42]} Kf6 {[%clk 00:00:09]} {[%emt 00:00:04]} 25. Qe7+
{[%clk 00:03:40]} {[%emt 00:00:07]} Kf5 {[%clk 00:00:09]} 26. Rad1 {[%clk
00:03:36]} {[%emt 00:00:08]} Qc4 {[%clk 00:00:04]} {[%emt 00:00:03]} 27. Qe5+
{[%clk 00:03:34]} {[%emt 00:00:14]} Kg4 {[%clk 00:00:04]} 28. Rd4+ {[%clk
00:03:29]} 1-0

[Event "II Open Internacional Ateneo Marítimo (60 Aniversario)"]
[Site "C/La reina 68 (Valencia), Spain"]
[Date "2018.09.15"]
[Round "6.7"]
[White "Sanchez Saez, Francisco"]
[Black "Campos Gambuti, Luis Maria"]
[Result "1-0"]
[TimeControl "7m+3s por jugada"]
[WhiteFideId "2231743"]
[BlackFideId "2226979"]
[WhiteElo "2332"]
[BlackElo "2382"]

1. e4 {[%clk 00:07:04]} Nf6 {[%clk 00:07:03]} 2. Nc3 {[%clk 00:07:05]} d6
{[%clk 00:07:05]} 3. d4 {[%clk 00:07:07]} Nbd7 {[%clk 00:07:06]} 4. Bg5 {[%clk
00:07:08]} e5 {[%clk 00:07:03]} {[%emt 00:00:18]} 5. dxe5 {[%clk 00:06:45]}
{[%emt 00:00:35]} dxe5 {[%clk 00:07:04]} {[%emt 00:00:03]} 6. Bc4 {[%clk
00:06:38]} c6 {[%clk 00:07:01]} 7. Nf3 {[%clk 00:06:26]} {[%emt 00:00:07]} h6
{[%clk 00:06:49]} {[%emt 00:00:38]} 8. Bh4 {[%clk 00:06:23]} Bb4 {[%clk
00:06:30]} {[%emt 00:00:07]} 9. Qe2 {[%clk 00:06:06]} {[%emt 00:00:19]} Qe7
{[%clk 00:06:21]} {[%emt 00:00:39]} 10. O-O {[%clk 00:05:48]} {[%emt 00:00:03]}
g5 {[%clk 00:06:17]} {[%emt 00:00:03]} 11. Bg3 {[%clk 00:04:14]} {[%emt
00:02:10]} Bxc3 {[%clk 00:05:24]} {[%emt 00:00:25]} 12. bxc3 {[%clk 00:04:15]}
Nh5 {[%clk 00:05:22]} 13. Nxe5 {[%clk 00:02:01]} {[%emt 00:02:29]} Nxg3 {[%clk
00:05:22]} 14. Bxf7+ {[%clk 00:02:02]} Qxf7 {[%clk 00:05:23]} 15. fxg3 {[%clk
00:02:03]} {[%emt 00:00:14]} Nxe5 {[%clk 00:05:10]} 16. Rxf7 {[%clk 00:02:04]}
Nxf7 {[%clk 00:05:12]} {[%emt 00:00:09]} 17. Rf1 {[%clk 00:01:45]} {[%emt
00:00:26]} Be6 {[%clk 00:05:13]} 18. Rf6 {[%clk 00:01:28]} {[%emt 00:00:10]}
Ke7 {[%clk 00:05:04]} {[%emt 00:00:17]} 19. e5 {[%clk 00:01:29]} Rhf8 {[%clk
00:04:37]} {[%emt 00:00:58]} 20. h4 {[%clk 00:01:27]} gxh4 {[%clk 00:04:04]}
{[%emt 00:00:08]} 21. gxh4 {[%clk 00:01:29]} {[%emt 00:00:39]} Rad8 {[%clk
00:03:57]} 22. Qf2 {[%clk 00:01:18]} b6 {[%clk 00:03:45]} {[%emt 00:00:09]} 23.
Rxe6+ {[%clk 00:01:01]} {[%emt 00:00:18]} Kxe6 {[%clk 00:03:47]} 24. Qf6+
{[%clk 00:01:03]} Kd5 {[%clk 00:03:48]} 25. e6 {[%clk 00:01:05]} {[%emt
00:00:04]} Ne5 {[%clk 00:03:48]} {[%emt 00:00:03]} 26. e7 {[%clk 00:01:03]}
{[%emt 00:00:09]} Rxf6 {[%clk 00:03:39]} {[%emt 00:00:06]} 27. exd8=Q+ {[%clk
00:01:03]} {[%emt 00:00:11]} Rd6 {[%clk 00:03:41]} 28. Qg8+ {[%clk 00:01:03]}
Ke4 {[%clk 00:03:38]} {[%emt 00:00:11]} 29. Qh7+ {[%clk 00:01:00]} Kf4 {[%clk
00:03:26]} {[%emt 00:00:09]} 30. g3+ {[%clk 00:00:44]} {[%emt 00:00:36]} Kxg3
{[%clk 00:03:00]} {[%emt 00:00:13]} 31. Qg7+ {[%clk 00:00:46]} {[%emt
00:00:38]} Ng4 {[%clk 00:02:51]} {[%emt 00:00:03]} 32. Qc7 {[%clk 00:00:47]}
1-0

[Event "II Open Internacional Ateneo Marítimo (60 Aniversario)"]
[Site "C/La reina 68 (Valencia), Spain"]
[Date "2018.09.15"]
[Round "7.1"]
[White "Kovacevic, Slobodan"]
[Black "Cruz Lledo, Pablo"]
[Result "1/2-1/2"]
[TimeControl "7m+3s por jugada"]
[WhiteFideId "902152"]
[BlackFideId "2297361"]
[WhiteElo "2252"]
[BlackElo "2436"]

1. d4 {[%clk 00:07:05]} d5 {[%clk 00:06:25]} {[%emt 00:00:42]} 2. Bf4 {[%clk
00:07:07]} e6 {[%clk 00:06:27]} {[%emt 00:00:12]} 3. Nf3 {[%clk 00:07:05]} Bd6
{[%clk 00:06:29]} 4. Bg3 {[%clk 00:07:07]} Ne7 {[%clk 00:06:30]} 5. e3 {[%clk
00:07:08]} {[%emt 00:00:13]} Nf5 {[%clk 00:06:31]} 6. Bxd6 {[%clk 00:07:09]}
Nxd6 {[%clk 00:06:32]} 7. Nbd2 {[%clk 00:07:10]} Nd7 {[%clk 00:06:30]} {[%emt
00:00:03]} 8. Bd3 {[%clk 00:07:11]} {[%emt 00:00:03]} O-O {[%clk 00:06:29]}
{[%emt 00:00:08]} 9. O-O {[%clk 00:07:12]} b6 {[%clk 00:06:28]} {[%emt
00:00:03]} 10. e4 {[%clk 00:07:14]} dxe4 {[%clk 00:06:11]} {[%emt 00:00:32]}
1/2-1/2